bitfinex/quotes_SOLUSD_20250817
["timestamp","ask_amount","ask_price","bid_price","bid_amount"]
[1755425435089,0.72000001,192.12,192.08,5.20616409]
[1755425435512,0.72000001,192.12,192.07,5.23643515]
[1755425435916,0.72,192.11,192.07,5.23643515]
[1755425437396,0.72,192.1,192.07,5.23643515]
[1755425437699,3.45999229,192.12,192.07,26.69]
[1755425437700,1e-08,192.12,192.07,26.69]
[1755425437899,1e-08,192.12,192.08,0.66]
[1755425438121,1e-08,192.12,192.09,26.0]
[1755425438324,1e-08,192.12,192.09,26.66]
[1755425439003,1e-08,192.12,192.1,0.66]
[1755425439823,1e-08,192.12,192.11,5.2053511]
[1755425441494,8.03593873,192.12,192.07,26.03]
[1755425441700,8.03593873,192.12,192.07,0.03]
[1755425441701,0.72,192.11,192.07,0.03]
[1755425442130,0.72,192.11,192.07,26.03]
[1755425442298,0.72,192.1,192.07,0.03]
[1755425442621,0.72,192.1,192.09,26.0]
[1755425443235,4.18462687,192.12,192.09,26.0]
[1755425443532,0.72000001,192.12,192.09,31.20562812]
[1755425446213,3.47015714,192.11,192.09,31.20562812]
[1755425446414,1e-08,192.12,192.09,31.87562812]
[1755425447312,1e-08,192.12,192.09,31.20562812]
[1755425447634,0.67000001,192.12,192.09,31.20562812]
[1755425448443,1e-08,192.12,192.09,31.20562812]
[1755425451228,0.67000001,192.12,192.09,31.20562812]
[1755425452553,1e-08,192.12,192.09,31.20562812]
[1755425456026,1e-08,192.12,192.09,31.87562812]
[1755425456432,1e-08,192.12,192.1,0.67]
[1755425456625,0.06,192.14,192.13,26.0]
[1755425457058,0.06,192.14,192.13,26.67]
[1755425457232,0.06,192.14,192.13,0.67]
[1755425458153,0.06,192.14,192.13,5.20480924]
[1755425460160,0.06,192.14,192.13,5.87480924]
[1755425461935,0.06,192.14,192.13,7.95982624]
[1755425462335,1e-08,192.14,192.13,60.10652273]
[1755425462531,1e-08,192.14,192.13,59.58604181]
[1755425462766,1e-08,192.14,192.13,44.47982624]
[1755425463658,1e-08,192.14,192.13,43.80982624]
[1755425464458,1e-08,192.14,192.13,7.28982624]
[1755425464650,1e-08,192.14,192.13,33.28982624]
[1755425467779,1e-08,192.14,192.13,28.085017]
[1755425467950,0.67000001,192.14,192.08,5.20616409]
[1755425468343,0.67000001,192.14,192.08,31.20616409]
[1755425468760,0.67000001,192.14,192.09,2.085669]
[1755425469167,0.67000001,192.14,192.07,0.03]
[1755425469364,15.10621557,192.13,192.07,0.03]
[1755425469563,0.67,192.12,192.07,0.03]
[1755425469976,5.2053511,192.11,192.07,0.03]
[1755425470346,0.67,192.1,192.07,0.03]
[1755425471668,5.87576399,192.1,192.07,0.03]
[1755425472048,0.67,192.09,192.07,0.03]
[1755425472254,15.10621557,192.08,192.07,0.03]
[1755425472748,0.67,192.08,192.07,0.03]
[1755425474148,5.87616409,192.08,192.07,0.03]
[1755425481469,37.21,192.08,192.07,0.03]
[1755425491473,42.41616409,192.08,192.07,0.03]
[1755425497985,57.52237966,192.08,192.07,0.03]
[1755425507120,26.0,192.12,192.07,0.03]
[1755425507333,59.62010678,192.11,192.07,0.03]
[1755425507540,15.10621557,192.09,192.07,0.03]
[1755425507700,36.54,192.08,192.07,0.03]
[1755425510107,42.41616409,192.08,192.07,0.03]
[1755425510413,46.26925837,192.08,192.07,0.03]
[1755425511523,45.88381885,192.08,192.07,0.03]
[1755425511703,7.32330569,192.08,192.07,0.03]
[1755425511905,43.86330569,192.08,192.07,0.03]
[1755425512919,44.53330569,192.08,192.07,0.03]
[1755425513109,43.86330569,192.08,192.07,0.03]
[1755425513625,49.73946978,192.08,192.07,0.03]
[1755425514611,43.86330569,192.08,192.07,0.03]
[1755425514816,43.86813073,192.08,192.07,0.03]
[1755425518208,49.74429482,192.08,192.07,0.03]
[1755425518533,64.85051039,192.08,192.07,0.03]
[1755425518906,43.86813073,192.08,192.07,0.03]
[1755425520231,7.32813073,192.08,192.07,0.7]
[1755425520434,7.32813073,192.08,192.07,5.90643515]
[1755425520608,3.86047597,192.08,192.07,7.99221215]
[1755425520936,36.62,192.12,192.07,7.99221215]
[1755425521145,3.47955465,192.11,192.08,0.67]
[1755425521347,36.62,192.12,192.08,0.67]
[1755425521514,1e-08,192.14,192.1,26.0]
[1755425521922,40.11805971,192.13,192.07,5.23643515]
[1755425522124,3.47756498,192.12,192.07,5.90643515]
[1755425522314,36.66,192.11,192.08,0.67]
[1755425524341,36.66,192.11,192.08,5.2060978]
[1755425524638,36.64,192.13,192.09,0.67]
[1755425524837,1e-08,192.14,192.09,0.67]
[1755425525134,36.64000001,192.14,192.1,0.67]
[1755425525548,37.31000001,192.14,192.1,0.67]
[1755425526142,36.64000001,192.14,192.11,0.67]
[1755425526317,36.64000001,192.14,192.12,0.67]
[1755425527112,36.64000001,192.14,192.1,5.20555507]
[1755425527313,1e-08,192.14,192.13,26.67]
[1755425527931,1e-08,192.14,192.13,31.87480924]
[1755425530749,1e-08,192.14,192.13,33.95960824]
[1755425532145,1e-08,192.14,192.13,31.20480924]
[1755425532861,0.67000001,192.14,192.12,5.20507069]
[1755425533028,1e-08,192.14,192.12,5.20507069]
[1755425533625,1e-08,192.14,192.11,5.20529106]
[1755425533861,0.67000001,192.14,192.11,5.20529106]
[1755425534163,1e-08,192.14,192.1,5.20558093]
[1755425534456,0.67,192.13,192.12,26.0]
[1755425534650,0.70000001,192.14,192.1,31.20558093]
[1755425534857,0.7,192.13,192.12,26.0]
[1755425535451,1e-08,192.14,192.12,26.0]
[1755425535851,0.70000001,192.14,192.12,26.0]
[1755425536148,0.70000001,192.14,192.11,5.20533139]
[1755425536350,1e-08,192.14,192.11,5.20533139]
[1755425536519,0.7,192.13,192.11,5.20533139]
[1755425536721,1e-08,192.14,192.11,5.20533139]
[1755425537128,0.70000001,192.14,192.11,5.20533139]
[1755425541270,1e-08,192.14,192.12,26.69]
[1755425541627,1e-08,192.14,192.13,0.69]
[1755425543675,1e-08,192.14,192.13,5.89480924]
[1755425544240,1e-08,192.14,192.13,5.20480924]
[1755425544635,0.70000001,192.14,192.13,5.20480924]
[1755425545142,1e-08,192.14,192.13,5.20480924]
[1755425546350,0.70000001,192.14,192.12,5.20499985]
[1755425546556,0.70000001,192.14,192.1,5.20562207]
[1755425550462,0.7,192.13,192.1,5.20562207]
[1755425551676,0.7,192.12,192.11,26.0]
[1755425552049,0.7,192.12,192.08,5.20611773]
[1755425552962,0.7,192.11,192.08,5.20611773]
[1755425553944,0.70000001,192.14,192.09,0.69]
[1755425554144,0.70000001,192.14,192.1,0.69]
[1755425554368,0.70000001,192.14,192.08,5.89611773]
[1755425554882,0.70000001,192.14,192.08,5.20611773]
[1755425555062,0.70000001,192.14,192.09,0.69]
[1755425556169,0.70000001,192.14,192.1,5.20562207]
[1755425556364,0.7,192.13,192.1,5.20562207]
[1755425557960,0.7,192.13,192.09,5.20580206]
[1755425558164,0.7,192.13,192.08,31.23616409]
[1755425558368,0.7,192.13,192.08,31.92616409]
[1755425559559,36.6,192.12,192.08,0.03]
[1755425559881,0.7,192.11,192.08,0.03]
[1755425562195,28.31947996,192.09,192.08,0.03]
[1755425563770,4.16162319,192.09,192.08,0.03]
[1755425563994,0.7,192.09,192.08,0.03]
[1755425564370,3.46162319,192.1,192.08,0.03]
[1755425564677,37.32,192.09,192.08,0.03]
[1755425564884,59.73224003,192.09,192.08,0.03]
[1755425565200,49.83191753,192.09,192.08,0.03]
[1755425565369,64.9381331,192.09,192.08,0.03]
[1755425567564,44.62602446,192.09,192.08,0.03]
[1755425567765,45.98751626,192.09,192.08,0.03]
[1755425568592,9.36751626,192.09,192.08,0.03]
[1755425568891,37.38,192.09,192.08,0.03]
[1755425569407,42.58589307,192.09,192.08,0.03]
[1755425569782,61.14919271,192.09,192.08,0.03]
[1755425570106,64.99045201,192.09,192.08,0.03]
[1755425571088,49.88423644,192.09,192.08,0.03]
[1755425571384,46.04297714,192.09,192.08,0.03]
[1755425572110,42.58589307,192.09,192.08,0.03]
[1755425573388,41.88589307,192.09,192.08,0.03]
[1755425573605,36.68,192.09,192.08,0.03]
[1755425574899,37.38,192.09,192.08,0.03]
[1755425575410,36.68,192.09,192.08,0.03]
[1755425575793,37.38,192.09,192.08,0.03]
[1755425577514,36.68,192.09,192.08,0.03]
[1755425580316,134.7,192.12,192.08,0.03]
[1755425580533,1e-08,192.14,192.09,26.0]
[1755425580696,1e-08,192.14,192.1,0.7]
[1755425581598,1e-08,192.14,192.11,5.2053511]
[1755425582013,1e-08,192.14,192.12,0.7]
[1755425582703,1e-08,192.14,192.13,5.20480924]
[1755425585323,1e-08,192.14,192.12,5.20502465]
[1755425585630,37.36,192.13,192.09,5.20589307]
[1755425585820,36.66,192.13,192.09,5.20589307]
[1755425586119,0.7,192.12,192.08,5.23610643]
[1755425586319,0.7,192.11,192.08,5.23610643]
[1755425586820,36.66,192.13,192.08,26.73]
[1755425587015,37.36,192.13,192.08,26.73]
[1755425587730,0.7,192.12,192.08,0.03]
[1755425588107,15.10621557,192.11,192.08,0.03]
[1755425588411,36.66,192.1,192.08,0.03]
[1755425588618,37.36,192.1,192.08,0.03]
[1755425588795,0.7,192.09,192.08,0.03]
[1755425590801,21.01210864,192.09,192.08,0.03]
[1755425591215,28.31736037,192.09,192.08,0.03]
[1755425594327,28.317338,192.09,192.08,0.03]
[1755425598649,64.917338,192.09,192.08,0.03]
[1755425600127,64.91369042,192.09,192.08,0.03]
[1755425603222,64.91557814,192.09,192.08,0.03]
[1755425604028,64.91452404,192.09,192.08,0.03]
[1755425604838,64.21452404,192.09,192.08,0.03]
[1755425607045,59.00863097,192.09,192.08,0.71]
[1755425607233,58.96863097,192.09,192.08,0.71]
[1755425607538,55.12552422,192.09,192.08,0.71]
[1755425607838,36.56,192.09,192.08,0.71]
[1755425608341,36.58,192.1,192.08,0.71]
[1755425611713,134.70000001,192.14,192.09,0.68]
[1755425612042,36.56,192.13,192.09,0.68]
[1755425612254,36.56,192.13,192.08,5.23606825]
[1755425612438,37.23,192.13,192.08,5.91606825]
[1755425612844,36.56,192.13,192.09,0.68]
[1755425613172,36.56,192.13,192.1,0.68]
[1755425613319,19.23746647,192.12,192.08,0.03]
[1755425613516,40.0212509,192.11,192.08,0.03]
[1755425613733,36.56,192.11,192.08,0.03]
[1755425614432,37.23,192.11,192.08,0.03]
[1755425614620,36.56,192.11,192.08,0.03]
[1755425615522,36.56,192.11,192.08,0.71]
[1755425616944,5.87487855,192.13,192.08,0.03]
[1755425617143,13.7721795,192.14,192.09,0.68]
[1755425617330,50.3321795,192.14,192.09,0.68]
[1755425617738,36.56,192.13,192.1,0.68]
[1755425618324,36.56,192.13,192.11,0.68]
[1755425619143,36.56,192.13,192.1,5.20538398]
[1755425619346,0.67,192.12,192.08,5.23611716]
[1755425621129,36.56,192.13,192.09,0.68]
[1755425621332,36.56,192.13,192.1,0.68]
[1755425621531,36.56,192.13,192.08,5.91611716]
[1755425621731,36.56,192.13,192.09,0.68]
[1755425622245,37.23,192.13,192.09,0.68]
[1755425622443,36.56,192.13,192.09,0.68]
[1755425623053,36.56,192.13,192.1,5.20562207]
[1755425624048,36.56,192.13,192.11,0.68]
[1755425624238,36.56,192.13,192.1,5.20562207]
[1755425624949,36.56,192.13,192.11,0.7]
[1755425625251,36.56,192.13,192.12,5.20508015]
[1755425625761,13.7721795,192.14,192.12,5.20508015]
[1755425625943,13.7721795,192.14,192.13,0.7]
[1755425626451,13.7721795,192.14,192.12,5.20508015]
[1755425626621,13.7721795,192.14,192.12,5.90508015]
[1755425626825,13.7721795,192.14,192.13,0.7]
[1755425627355,13.7721795,192.14,192.13,5.90480924]
[1755425628441,13.7721795,192.14,192.13,5.20480924]
[1755425628634,14.4221795,192.14,192.09,5.20589307]
[1755425628842,0.65,192.13,192.09,5.20589307]
[1755425629153,13.7721795,192.14,192.09,5.90589307]
[1755425629754,14.4221795,192.14,192.09,5.90589307]
[1755425630238,0.65,192.13,192.09,5.90589307]
[1755425631731,0.65,192.13,192.09,5.20589307]
[1755425631937,13.7721795,192.14,192.09,5.20589307]
[1755425632154,0.65,192.12,192.09,5.20589307]
[1755425632860,0.65,192.11,192.08,0.03]
[1755425634222,0.65,192.1,192.08,0.03]
[1755425637556,37.19,192.12,192.08,0.03]
[1755425637737,0.65,192.11,192.08,0.03]
[1755425638238,36.54,192.12,192.08,0.03]
[1755425638558,0.65,192.1,192.08,0.03]
[1755425639959,0.65,192.09,192.08,0.03]
[1755425641867,36.54,192.12,192.08,0.03]
[1755425642062,0.65,192.11,192.08,0.03]
[1755425643655,13.168782,192.11,192.08,0.03]
[1755425643965,9.31971097,192.11,192.08,0.03]
[1755425644144,4.11421603,192.1,192.08,0.03]
[1755425644560,5.85589307,192.09,192.08,0.03]
[1755425646665,9.3201091,192.09,192.08,0.03]
[1755425646866,20.96210864,192.09,192.08,0.03]
[1755425647071,24.42632467,192.09,192.08,0.03]
[1755425647362,60.96632467,192.09,192.08,0.03]
[1755425648552,64.82005971,192.09,192.08,0.03]
[1755425648748,40.00421603,192.09,192.08,0.03]
[1755425648965,36.54,192.09,192.08,0.03]
[1755425649161,36.54,192.09,192.08,0.73]
[1755425649770,36.54,192.09,192.08,0.03]
[1755425650064,134.7,192.1,192.08,0.73]
[1755425650475,134.7,192.1,192.08,0.03]
[1755425651874,15.24680747,192.13,192.09,0.7]
[1755425652246,15.24680747,192.13,192.08,0.03]
[1755425652445,0.65,192.12,192.08,0.03]
[1755425652664,37.19,192.12,192.08,0.03]
[1755425653467,0.65,192.11,192.08,0.03]
[1755425654174,0.65,192.1,192.08,0.03]
[1755425655561,37.23,192.12,192.08,0.03]
[1755425655765,0.69,192.1,192.08,0.03]
[1755425656769,37.23,192.12,192.08,0.03]
[1755425657075,0.69,192.1,192.08,0.03]
[1755425658675,0.69,192.09,192.08,0.03]
[1755425659374,0.69,192.11,192.08,0.03]
[1755425659555,36.54,192.12,192.08,0.03]
[1755425659752,36.54,192.12,192.08,0.72]
[1755425659952,37.23,192.12,192.08,0.72]
[1755425660174,37.23,192.12,192.08,0.03]
[1755425660849,8.02190022,192.11,192.08,0.03]
[1755425661056,3.47317753,192.1,192.08,0.03]
[1755425661273,36.54,192.09,192.08,0.03]
[1755425661472,37.23,192.09,192.08,0.03]
[1755425662253,36.54,192.09,192.08,0.03]
[1755425664859,37.23,192.09,192.08,0.03]
[1755425665481,36.54,192.09,192.08,0.03]
[1755425665680,36.54,192.11,192.08,0.03]
[1755425666385,37.23,192.11,192.08,0.03]
[1755425666886,0.69,192.1,192.08,0.03]
[1755425667479,0.69,192.09,192.08,0.03]
[1755425668181,3.47312623,192.1,192.08,0.03]
[1755425668381,0.69,192.1,192.08,0.03]
[1755425668690,0.69,192.09,192.08,0.03]
[1755425669367,36.54,192.11,192.08,0.03]
[1755425669582,0.69,192.1,192.08,0.03]
[1755425672994,0.69,192.09,192.08,0.03]
[1755425673177,3.47664909,192.09,192.08,0.03]
[1755425673495,149.94680747,192.13,192.08,26.72]
[1755425673684,3.47731624,192.12,192.09,0.69]
[1755425673885,15.24680747,192.13,192.09,0.69]
[1755425674192,15.24680747,192.13,192.1,0.69]
[1755425674783,15.24680747,192.13,192.11,0.69]
[1755425675267,15.24680747,192.13,192.09,44.22062574]
[1755425675464,15.24680747,192.13,192.12,0.69]
[1755425675701,15.24680747,192.13,192.1,0.69]
[1755425675992,15.24680747,192.13,192.11,0.69]
[1755425676196,15.24680747,192.13,192.12,5.20508015]
[1755425677677,15.24680747,192.13,192.12,5.89508015]
[1755425679393,15.24680747,192.13,192.12,21.14188715]
[1755425682179,15.24680747,192.13,192.12,20.45188715]
[1755425682679,15.93680747,192.13,192.12,5.20508015]
[1755425683282,15.93680747,192.13,192.11,5.2053511]
[1755425683478,0.69,192.12,192.11,5.2053511]
[1755425684306,15.24680747,192.13,192.11,5.2053511]
[1755425684801,15.24680747,192.13,192.11,21.1321581]
[1755425684980,15.24680747,192.13,192.11,20.4521581]
[1755425686281,15.93680747,192.13,192.11,20.4521581]
[1755425686805,15.24680747,192.13,192.11,20.4521581]
[1755425687014,0.69,192.12,192.11,5.2053511]
[1755425687176,0.69,192.12,192.1,31.20555066]
[1755425687374,0.69,192.12,192.1,5.20555066]
[1755425687591,0.69,192.12,192.08,5.23616409]
[1755425687786,0.69,192.12,192.08,20.48297109]
[1755425687995,15.24680747,192.13,192.08,20.48297109]
[1755425688179,0.69,192.11,192.08,20.48297109]
[1755425688579,15.24680747,192.13,192.09,0.68]
[1755425689073,15.93680747,192.13,192.09,0.68]
[1755425689394,15.24680747,192.13,192.09,15.926807]
[1755425689598,15.24680747,192.13,192.1,5.88562207]
[1755425690106,15.24680747,192.13,192.11,26.0]
[1755425690484,15.24680747,192.13,192.12,5.20508015]
[1755425696397,15.24680747,192.13,192.12,20.45188815]
[1755425698226,15.24680747,192.13,192.12,5.20508015]
[1755425698718,1e-08,192.13,192.12,5.88508015]
[1755425699603,1e-08,192.13,192.12,7.96987915]
[1755425700325,1e-08,192.18,192.15,26.0]
[1755425700498,1e-08,192.18,192.16,36.52]
[1755425700696,1e-08,192.18,192.17,31.20372586]
[1755425701031,1e-08,192.18,192.17,33.28809086]
[1755425701318,1e-08,192.18,192.17,33.96809086]
[1755425701500,1e-08,192.18,192.17,33.28809086]
[1755425702929,0.69000001,192.18,192.17,33.28809086]
[1755425703093,1e-08,192.18,192.17,33.28809086]
[1755425704914,0.69000001,192.18,192.17,33.28809086]
[1755425705205,1e-08,192.18,192.17,33.28809086]
[1755425706807,0.69000001,192.18,192.17,33.28809086]
[1755425707000,1e-08,192.18,192.17,33.28809086]
[1755425708919,1e-08,192.18,192.17,33.96809086]
[1755425709904,1e-08,192.18,192.17,33.28809086]
[1755425711524,0.69000001,192.18,192.17,33.28809086]
[1755425712226,0.69000001,192.18,192.17,2.084365]
[1755425713124,0.69000001,192.18,192.15,5.2042378]
[1755425713523,0.69000001,192.18,192.16,5.262392]
[1755425714030,0.69000001,192.18,192.14,67.72448923]
[1755425714328,0.69000001,192.18,192.15,5.262919]
[1755425714909,0.69000001,192.18,192.13,5.23475311]
[1755425715114,0.69000001,192.18,192.14,5.203201]
[1755425715705,5.89358838,192.18,192.13,0.03]
[1755425715911,9.36455258,192.18,192.13,0.03]
[1755425716144,0.7,192.17,192.13,8.704166]
[1755425717418,0.7,192.17,192.13,13.9089442]
[1755425717726,0.7,192.17,192.13,14.6289442]
[1755425718347,0.7,192.17,192.13,13.9089442]
[1755425719940,9.37964125,192.17,192.13,8.704166]
[1755425720140,5.20377564,192.17,192.13,8.704166]
[1755425720341,0.7,192.16,192.13,8.704166]
[1755425720549,4.17588532,192.16,192.13,0.03]
[1755425720754,0.7,192.16,192.13,0.03]
[1755425721057,0.7,192.15,192.13,0.03]
[1755425721634,0.7,192.14,192.13,0.03]
[1755425722637,15.80621557,192.16,192.13,0.03]
[1755425723039,15.10621557,192.17,192.13,0.03]
[1755425723356,0.7,192.15,192.13,0.03]
[1755425723764,0.7,192.14,192.13,0.03]
[1755425725470,15.80621557,192.14,192.13,0.03]
[1755425726833,24.48502632,192.14,192.13,0.03]
[1755425727360,61.00502632,192.14,192.13,0.03]
[1755425727574,64.86476075,192.14,192.13,0.03]
[1755425733116,90.86476075,192.14,192.13,0.03]
[1755425733260,15.10621557,192.13,192.09,0.03]
[1755425733468,15.10621557,192.11,192.09,0.03]
[1755425733666,55.12048797,192.1,192.09,0.03]
[1755425734116,55.82048797,192.1,192.09,0.03]
[1755425734409,52.34621557,192.1,192.09,0.03]
[1755425735305,57.55183764,192.1,192.09,0.03]
[1755425738602,39.07134589,192.14,192.09,0.75]
[1755425738603,134.7,192.13,192.09,0.75]
[1755425738808,36.54,192.12,192.09,0.75]
[1755425739015,36.54,192.12,192.1,0.72]
[1755425739409,36.54,192.12,192.09,0.03]
[1755425739611,36.54,192.12,192.1,0.72]
[1755425739988,36.54,192.12,192.09,0.03]
[1755425740187,0.06,192.14,192.11,0.72]
[1755425740512,0.06,192.14,192.12,0.72]
[1755425740714,0.06,192.14,192.11,5.20527847]
[1755425741087,0.06,192.14,192.11,5.92527847]
[1755425741292,36.54,192.13,192.09,31.23584722]
[1755425741493,37.24,192.13,192.09,0.03]
[1755425742426,36.54,192.13,192.1,0.72]
[1755425742594,0.06,192.14,192.1,0.72]
[1755425742933,0.06,192.14,192.11,5.9253511]
[1755425743319,0.06,192.14,192.11,0.72]
[1755425744194,0.06,192.14,192.12,0.72]
[1755425744996,0.06,192.14,192.11,5.20519499]
[1755425745196,0.06,192.14,192.09,20.87752705]
[1755425745421,0.68,192.13,192.09,20.87752705]
[1755425746024,0.68,192.13,192.09,5.23582605]
[1755425746901,15.16621557,192.14,192.09,5.23582605]
[1755425747104,15.16621557,192.14,192.1,0.69]
[1755425747414,15.84621557,192.14,192.1,0.69]
[1755425747834,15.16621557,192.14,192.1,0.69]
[1755425749013,15.16621557,192.14,192.1,5.20544308]
[1755425749216,15.16621557,192.14,192.11,0.69]
[1755425751316,0.06,192.14,192.1,5.20544308]
[1755425751519,0.06,192.14,192.12,0.69]
[1755425752833,0.06,192.14,192.13,5.20480924]
[1755425753539,0.06,192.14,192.13,5.89480924]
[1755425757045,0.06,192.14,192.13,5.20480924]
[1755425757730,0.06,192.14,192.13,5.89480924]
[1755425758845,0.06,192.14,192.13,5.20480924]
[1755425761041,0.74,192.14,192.1,26.0]
[1755425761219,0.74,192.14,192.1,41.166216]
[1755425762167,36.52,192.13,192.1,15.166216]
[1755425762517,36.52,192.13,192.09,5.23589307]
[1755425762518,0.68,192.12,192.09,5.23589307]
[1755425763026,0.68,192.11,192.09,0.03]
[1755425764472,37.2,192.13,192.09,0.03]
[1755425764638,36.52,192.13,192.1,0.69]
[1755425765928,36.52,192.13,192.11,5.2053511]
[1755425767067,37.2,192.13,192.11,5.2053511]
[1755425767738,36.52,192.13,192.11,5.2053511]
[1755425767959,36.52,192.13,192.1,5.20562207]
[1755425768259,0.06,192.14,192.11,0.69]
[1755425768467,0.06,192.14,192.1,5.20562207]
[1755425768875,0.68,192.13,192.1,5.20562207]
[1755425769758,0.68,192.12,192.1,5.20562207]
[1755425769972,36.58,192.14,192.1,5.20562207]
[1755425770148,36.58,192.14,192.1,26.03]
[1755425770351,0.68,192.13,192.1,26.03]
[1755425770751,36.58,192.14,192.1,26.03]
[1755425771075,37.26,192.14,192.1,26.03]
[1755425771451,36.58,192.14,192.1,26.72]
[1755425771644,36.58,192.14,192.11,0.69]
[1755425772967,36.58,192.14,192.12,5.20508015]
[1755425773166,0.06,192.14,192.12,5.89508015]
[1755425776077,0.06,192.14,192.12,5.20508015]
[1755425778859,0.06,192.14,192.11,5.2053511]
[1755425779061,0.68,192.13,192.11,5.2053511]
[1755425779276,0.68,192.12,192.1,31.23555265]
[1755425779580,0.68,192.12,192.1,0.03]
[1755425779878,0.68,192.11,192.1,0.03]
[1755425781872,15.78621557,192.11,192.1,0.03]
[1755425782068,19.2620745,192.11,192.1,0.03]
[1755425782763,24.4674256,192.11,192.1,0.03]
[1755425784664,19.2620745,192.11,192.1,0.03]
[1755425784876,3.47585893,192.11,192.1,0.03]
[1755425785056,4.15585893,192.11,192.1,0.03]
[1755425787268,3.47585893,192.11,192.1,0.03]
[1755425787989,4.15585893,192.11,192.1,0.03]
[1755425790394,0.68,192.11,192.1,0.03]
[1755425790592,15.10621557,192.12,192.1,0.03]
[1755425790794,36.54,192.13,192.1,0.03]
[1755425790995,3.47562539,192.12,192.1,0.03]
[1755425791194,36.54,192.13,192.1,0.03]
[1755425791400,0.06,192.14,192.1,0.75]
[1755425791605,36.62,192.14,192.1,0.75]
[1755425791774,3.47587381,192.13,192.1,0.75]
[1755425791977,37.3,192.14,192.1,0.75]
[1755425792304,3.47622382,192.13,192.11,5.2053511]
[1755425792485,36.62,192.14,192.11,5.2053511]
[1755425793499,36.62,192.14,192.11,0.72]
[1755425793797,36.62,192.14,192.1,0.03]
[1755425794304,37.3,192.14,192.1,0.75]
[1755425794741,37.3,192.14,192.1,0.03]
[1755425795906,37.3,192.14,192.1,5.23562207]
[1755425796507,0.06,192.14,192.11,0.72]
[1755425796712,0.06,192.14,192.1,18.24967724]
[1755425796893,0.06,192.14,192.12,0.72]
[1755425797300,0.06,192.14,192.1,18.24967724]
[1755425797501,0.06,192.14,192.11,0.72]
[1755425797982,0.74,192.14,192.11,5.2053511]
[1755425799139,0.06,192.14,192.11,5.2053511]
[1755425800007,0.68,192.13,192.1,5.23561265]
[1755425800196,37.22,192.13,192.1,5.23561265]
[1755425800397,0.68,192.12,192.1,5.23561265]
[1755425801207,0.68,192.12,192.1,0.03]
[1755425801409,36.54,192.13,192.1,0.03]
[1755425802021,37.22,192.13,192.1,0.03]
[1755425802204,0.68,192.12,192.1,0.03]
[1755425802610,0.68,192.11,192.1,0.03]
[1755425803634,19.2622496,192.11,192.1,0.03]
[1755425803810,23.12472961,192.11,192.1,0.03]
[1755425805722,19.2622496,192.11,192.1,0.03]
[1755425805924,23.12204269,192.11,192.1,0.03]
[1755425806218,19.2622496,192.11,192.1,0.03]
[1755425808020,19.2822496,192.11,192.1,0.03]
[1755425808214,3.47603403,192.11,192.1,0.03]
[1755425808413,3.47603403,192.12,192.1,0.03]
[1755425808613,37.26,192.13,192.1,0.03]
[1755425808820,3.47404101,192.12,192.1,0.03]
[1755425809007,37.26,192.13,192.1,0.03]
[1755425809207,3.47422181,192.12,192.1,0.03]
[1755425809410,0.06,192.14,192.11,26.66]
[1755425809649,0.06,192.14,192.12,0.66]